bitfinex-derivatives/quotes_BTCF0:USTF0_20250910
["timestamp","ask_amount","ask_price","bid_price","bid_amount"]
[1757472264772,0.05594155,111600.0,111590.0,0.19091026]
[1757472265166,0.05694155,111600.0,111590.0,0.19091026]
[1757472265472,0.05694155,111600.0,111590.0,0.19539026]
[1757472265662,0.05794155,111600.0,111590.0,0.19539026]
[1757472266170,0.05794155,111600.0,111590.0,0.09993513]
[1757472266670,0.05794155,111600.0,111590.0,0.19539026]
[1757472267170,0.05794155,111600.0,111590.0,0.09993513]
[1757472267770,0.03741,111600.0,111590.0,0.09993513]
[1757472269272,0.05794793,111600.0,111590.0,0.09993513]
[1757472271273,0.30794793,111600.0,111590.0,0.00448]
[1757472271472,0.30794793,111600.0,111590.0,0.09993513]
[1757472276192,0.30794793,111600.0,111590.0,0.00448]
[1757472276381,0.30794793,111600.0,111590.0,0.09993513]
[1757472277689,0.30802018,111600.0,111590.0,0.09993513]
[1757472279390,0.05802018,111600.0,111590.0,0.09993513]
[1757472280394,0.40347531,111600.0,111590.0,0.00448]
[1757472280589,0.30802018,111600.0,111590.0,0.09993513]
[1757472284201,0.05802018,111600.0,111590.0,0.44539026]
[1757472284395,0.02261018,111600.0,111590.0,0.44539026]
[1757472289200,0.03553018,111600.0,111590.0,0.44539026]
[1757472290002,0.03453018,111600.0,111590.0,0.44539026]
[1757472291102,0.03353018,111600.0,111590.0,0.44539026]
[1757472294202,0.05538018,111600.0,111590.0,0.44539026]
[1757472297303,0.05538018,111600.0,111590.0,0.09993513]
[1757472305213,0.05542108,111600.0,111590.0,0.09993513]
[1757472306213,0.05542108,111600.0,111590.0,0.19539026]
[1757472306911,0.05542108,111600.0,111590.0,0.09993513]
[1757472307914,0.05542108,111600.0,111590.0,0.00448]
[1757472308213,0.05542108,111600.0,111590.0,0.09993513]
[1757472309514,0.30542108,111600.0,111590.0,0.09993513]
[1757472309813,0.40087621,111600.0,111590.0,0.09993513]
[1757472310603,0.30542108,111600.0,111590.0,0.09993513]
[1757472311418,0.40087621,111600.0,111590.0,0.00448]
[1757472313413,0.40187621,111600.0,111590.0,0.00448]
[1757472314418,0.05642108,111600.0,111590.0,0.29086008]
[1757472314710,0.05642108,111600.0,111590.0,0.54086008]
[1757472315712,0.05542108,111600.0,111590.0,0.54086008]
[1757472315916,0.05642108,111600.0,111590.0,0.54086008]
[1757472316716,0.05542108,111600.0,111590.0,0.54086008]
[1757472320118,0.05541164,111600.0,111590.0,0.54086008]
[1757472328021,0.05541164,111600.0,111590.0,0.29086008]
[1757472328022,0.02064164,111600.0,111590.0,0.29086008]
[1757472328218,0.01820784,111600.0,111590.0,0.68405012]
[1757472328423,0.03703,111610.0,111590.0,0.68405012]
[1757472328623,0.03703,111610.0,111600.0,0.42957012]
[1757472328624,0.0001,111610.0,111600.0,0.42957012]
[1757472328933,0.03703,111620.0,111600.0,0.42957012]
[1757472329225,0.03703,111620.0,111610.0,0.28638008]
[1757472329422,0.03693,111620.0,111610.0,0.28638008]
[1757472330028,0.03693,111620.0,111610.0,0.3586316]
[1757472330222,0.03693,111620.0,111610.0,0.3631016]
[1757472331817,0.03893,111620.0,111610.0,0.3631016]
[1757472332321,0.04093,111620.0,111610.0,0.3631016]
[1757472334022,0.01788,111620.0,111610.0,0.3631016]
[1757472335124,0.004,111620.0,111610.0,0.3631016]
[1757472336421,0.004,111620.0,111610.0,0.6131016]
[1757472339327,0.004,111620.0,111610.0,0.3631016]
[1757472339726,0.004,111620.0,111610.0,0.07672152]
[1757472339924,0.04019,111620.0,111610.0,0.3631016]
[1757472340928,0.04019,111620.0,111610.0,0.07672152]
[1757472341129,0.04019,111620.0,111610.0,0.21991156]
[1757472343635,0.04019,111620.0,111610.0,0.3631016]
[1757472344529,0.004,111620.0,111610.0,0.3631016]
[1757472345036,0.04025,111620.0,111610.0,0.3631016]
[1757472346632,0.04025,111620.0,111610.0,0.21991156]
[1757472346832,0.04025,111620.0,111610.0,0.3631016]
[1757472347033,0.01739,111620.0,111610.0,0.3631016]
[1757472347438,0.04025,111620.0,111610.0,0.3631016]
[1757472347637,0.06120662,111620.0,111610.0,0.3631016]
[1757472353241,0.06120662,111620.0,111610.0,0.07672152]
[1757472353242,0.20439666,111620.0,111610.0,0.07672152]
[1757472353444,0.20439666,111620.0,111610.0,0.21991156]
[1757472353838,0.06120662,111620.0,111610.0,0.21991156]
[1757472355841,0.06120662,111620.0,111610.0,0.07672152]
[1757472356042,0.06120662,111620.0,111610.0,0.21991156]
[1757472356252,0.45439666,111620.0,111610.0,0.21991156]
[1757472357142,0.50253916,111620.0,111610.0,0.21991156]
[1757472357649,0.5975867,111620.0,111610.0,0.21991156]
[1757472358143,0.45439666,111620.0,111610.0,0.21991156]
[1757472359645,0.31120662,111620.0,111610.0,0.21991156]
[1757472359850,0.45439666,111620.0,111610.0,0.21991156]
[1757472360149,1.27547666,111620.0,111610.0,0.21991156]
[1757472361250,1.4186667,111620.0,111610.0,0.00447]
[1757472361460,1.4186667,111620.0,111610.0,0.14766004]
[1757472362444,1.27547666,111620.0,111610.0,0.14766004]
[1757472362850,1.27531666,111620.0,111610.0,0.14766004]
[1757472364252,0.45439666,111620.0,111610.0,0.14766004]
[1757472364453,1.27511666,111620.0,111610.0,0.14766004]
[1757472365151,1.4183067,111620.0,111610.0,0.00447]
[1757472365544,1.4664492,111620.0,111610.0,0.00447]
[1757472366150,0.6457292,111620.0,111610.0,0.00447]
[1757472366345,1.4662492,111620.0,111610.0,0.00447]
[1757472367349,1.4181067,111620.0,111610.0,0.00447]
[1757472368154,0.5975867,111620.0,111610.0,0.00447]
[1757472368452,1.4183067,111620.0,111610.0,0.00447]
[1757472372848,1.4183067,111620.0,111600.0,0.0001348]
[1757472373060,0.17774004,111610.0,111600.0,0.0001348]
[1757472373350,0.19869666,111610.0,111600.0,0.0001348]
[1757472373559,1.01905666,111610.0,111600.0,0.14332484]
[1757472374756,0.19869666,111610.0,111600.0,0.15048484]
[1757472375054,1.01905666,111610.0,111600.0,0.15048484]
[1757472375451,1.02005666,111610.0,111600.0,0.0001348]
[1757472375648,1.02105666,111610.0,111600.0,0.14332484]
[1757472376044,1.02105666,111610.0,111600.0,0.0001348]
[1757472376457,0.97333259,111610.0,111600.0,0.0001348]
[1757472376755,0.98217508,111610.0,111600.0,0.0001348]
[1757472377257,0.88670911,111610.0,111600.0,0.0072948]
[1757472377458,0.15297259,111610.0,111600.0,0.10276077]
[1757472377757,0.97333259,111610.0,111600.0,0.10276077]
[1757472378458,0.97333259,111610.0,111600.0,0.0072948]
[1757472380755,0.98216609,111610.0,111600.0,0.0001348]
[1757472384662,0.98220456,111610.0,111600.0,0.0001348]
[1757472385355,0.03455,111590.0,111580.0,0.09546597]
[1757472385661,0.87586509,111590.0,111580.0,0.10284597]
[1757472386662,0.87586509,111590.0,111580.0,0.10384597]
[1757472387161,0.87586509,111590.0,111580.0,0.10484597]
[1757472387666,0.87586509,111590.0,111580.0,0.09746597]
[1757472387965,0.87586509,111590.0,111580.0,0.10484597]
[1757472388363,0.87586509,111590.0,111580.0,0.10384597]
[1757472390066,0.87586509,111590.0,111580.0,0.10284597]
[1757472390465,0.03455,111580.0,111570.0,0.20969823]
[1757472390666,0.05554509,111580.0,111570.0,0.20969823]
[1757472391163,0.05554509,111580.0,111570.0,0.18892254]
[1757472391664,0.05554509,111580.0,111570.0,0.18992254]
[1757472392260,0.05554426,111580.0,111570.0,0.09445657]
[1757472392461,0.05554426,111580.0,111570.0,0.18992254]
[1757472393967,0.05554426,111580.0,111570.0,0.19092254]
[1757472396064,0.05554426,111580.0,111570.0,0.18644254]
[1757472397962,0.05554426,111580.0,111570.0,0.09097657]
[1757472398166,0.05554426,111580.0,111570.0,0.18644254]
[1757472398371,0.05554426,111580.0,111570.0,0.09097657]
[1757472398568,0.05554426,111580.0,111570.0,0.18644254]
[1757472399170,0.05554426,111580.0,111570.0,0.18544254]
[1757472399371,0.05554426,111580.0,111570.0,0.18444254]
[1757472404278,0.05559384,111580.0,111570.0,0.18444254]
[1757472405176,0.05559399,111580.0,111570.0,0.18444254]
[1757472406371,0.05559399,111580.0,111570.0,0.17562528]
[1757472407477,0.05559399,111580.0,111570.0,0.18459245]
[1757472407680,0.05559399,111580.0,111570.0,0.17562528]
[1757472407974,0.15105996,111580.0,111570.0,0.08015931]
[1757472408172,0.15105996,111580.0,111570.0,0.17562528]
[1757472408372,0.05559399,111580.0,111570.0,0.17562528]
[1757472410082,0.05559399,111580.0,111570.0,0.18010528]
[1757472411876,0.96933996,111580.0,111570.0,0.00448]
[1757472412280,0.96933996,111580.0,111570.0,0.01186]
[1757472412982,0.15105996,111580.0,111570.0,0.01186]
[1757472413180,0.30559399,111580.0,111570.0,0.01186]
[1757472413376,0.30559399,111580.0,111570.0,0.00448]
[1757472413572,0.40105996,111580.0,111570.0,0.00448]
[1757472415786,0.30559399,111580.0,111570.0,0.00448]
[1757472415978,0.40105996,111580.0,111570.0,0.00448]
[1757472417486,0.30559399,111580.0,111570.0,0.00448]
[1757472417683,0.40105996,111580.0,111570.0,0.00448]
[1757472419787,0.49652593,111580.0,111570.0,0.00448]
[1757472420085,0.03401,111550.0,111540.0,0.10294597]
[1757472420289,0.03401,111550.0,111540.0,0.1121008]
[1757472421489,0.15052127,111550.0,111540.0,0.0001]
[1757472421684,0.15052127,111550.0,111540.0,0.00748]
[1757472422394,0.15052127,111550.0,111540.0,0.10294597]
[1757472422993,0.15052127,111550.0,111540.0,0.00748]
[1757472424190,0.15052127,111550.0,111540.0,0.01642991]
[1757472424396,0.03401,111550.0,111540.0,0.20736185]
[1757472424581,0.03401,111550.0,111540.0,0.11189588]
[1757472427792,0.01272,111550.0,111540.0,0.45736185]
[1757472429203,0.0001,111560.0,111540.0,0.55843782]
[1757472429385,0.0001,111560.0,111550.0,0.19831194]
[1757472429590,0.0001,111570.0,111550.0,0.19831194]
[1757472429893,0.0001,111570.0,111560.0,0.19831194]
[1757472430098,0.0341448,111570.0,111560.0,0.19831194]
[1757472431298,0.0001348,111570.0,111560.0,0.19831194]
[1757472431596,0.0011348,111570.0,111560.0,0.19831194]
[1757472432700,0.0371748,111570.0,111560.0,0.19831194]
[1757472433297,0.0361748,111570.0,111560.0,0.19931194]
[1757472433898,0.0351748,111570.0,111560.0,0.19931194]
[1757472434199,0.0361748,111570.0,111560.0,0.19931194]
[1757472435101,0.0351748,111570.0,111560.0,0.20031194]
[1757472436302,0.0351748,111570.0,111560.0,0.10484597]
[1757472436504,0.0351748,111570.0,111560.0,0.29586414]
[1757472437200,0.0135248,111570.0,111560.0,0.29586414]
[1757472437398,0.0001348,111570.0,111560.0,0.29586414]
[1757472438104,0.02117846,111570.0,111560.0,0.29586414]
[1757472438304,0.0001348,111570.0,111560.0,0.29586414]
[1757472440811,0.0211796,111570.0,111560.0,0.29586414]
[1757472441210,0.0562196,111570.0,111560.0,0.29586414]
[1757472442612,0.0211796,111570.0,111560.0,0.29586414]
[1757472443211,0.0428296,111570.0,111560.0,0.29586414]
[1757472443911,0.0211796,111570.0,111560.0,0.29586414]
[1757472444707,0.0428296,111570.0,111560.0,0.29586414]
[1757472445013,0.0345696,111570.0,111560.0,0.29586414]
[1757472445212,0.0562196,111570.0,111560.0,0.29586414]
[1757472447714,0.0351748,111570.0,111560.0,0.29586414]
[1757472448317,0.0135248,111570.0,111560.0,0.29586414]
[1757472448515,0.0351748,111570.0,111560.0,0.29586414]
[1757472450112,0.0001348,111570.0,111560.0,0.29586414]
[1757472450904,0.0217848,111570.0,111560.0,0.29586414]
[1757472451110,0.0351748,111570.0,111560.0,0.29586414]
[1757472454314,0.0351748,111570.0,111560.0,0.00938]
[1757472454617,0.0351748,111570.0,111560.0,0.29586414]
[1757472457223,0.0135248,111570.0,111560.0,0.29586414]
[1757472457422,0.0351748,111570.0,111560.0,0.29586414]
[1757472457817,0.0135248,111570.0,111560.0,0.29586414]
[1757472458117,0.44950318,111570.0,111560.0,0.002]
[1757472458317,0.44950318,111570.0,111560.0,0.15262207]
[1757472459224,0.44950318,111570.0,111560.0,0.00938]
[1757472459426,0.19950318,111570.0,111560.0,0.15262207]
[1757472459925,0.19950318,111570.0,111560.0,0.00938]
[1757472460126,0.19950318,111570.0,111560.0,0.15262207]
[1757472465016,0.19950318,111570.0,111560.0,0.00938]
[1757472465220,0.05626111,111570.0,111560.0,0.29586414]
[1757472465416,0.19950318,111570.0,111560.0,0.29586414]
[1757472465827,0.19950318,111570.0,111560.0,0.15262207]
[1757472466026,0.44950318,111570.0,111560.0,0.002]
[1757472466327,0.59274525,111570.0,111560.0,0.001]
[1757472466532,0.03546,111550.0,111540.0,0.15072207]
[1757472466728,0.19978838,111550.0,111540.0,0.15072207]
[1757472467622,0.19978838,111550.0,111540.0,0.29396414]
[1757472468529,0.19978838,111550.0,111540.0,0.29596414]
[1757472469129,0.17870207,111550.0,111540.0,0.29596414]
[1757472469629,0.17870207,111550.0,111540.0,0.30490997]
[1757472470429,0.17870207,111550.0,111540.0,0.30690997]
[1757472471033,0.03546,111550.0,111540.0,0.30690997]
[1757472471825,0.17870207,111550.0,111540.0,0.30690997]
[1757472474333,0.17870207,111550.0,111540.0,0.30590997]
[1757472475034,0.17870207,111550.0,111540.0,0.30390997]
[1757472475333,0.17870207,111550.0,111540.0,0.30490997]
[1757472480138,0.03546,111550.0,111540.0,0.01842583]
[1757472480342,0.17870207,111550.0,111540.0,0.30490997]
[1757472480741,0.17870207,111550.0,111540.0,0.01842583]
[1757472481039,0.17870207,111550.0,111540.0,0.30490997]
[1757472481938,0.03546,111550.0,111540.0,0.30490997]
[1757472482142,0.17870207,111550.0,111540.0,0.30490997]
[1757472486643,0.17870207,111550.0,111540.0,0.30390997]
[1757472487142,0.17870207,111550.0,111540.0,0.30290997]
[1757472491130,0.0136,111560.0,111540.0,0.55290997]
[1757472491335,0.05734007,111560.0,111550.0,0.15062207]
[1757472491540,0.05724007,111560.0,111550.0,0.15062207]
[1757472494144,0.05724007,111560.0,111550.0,0.00738]
[1757472494444,0.05724007,111560.0,111550.0,0.15062207]
[1757472497241,0.20048214,111560.0,111550.0,0.15062207]
[1757472497446,0.05724007,111560.0,111550.0,0.15062207]
[1757472497845,0.20048214,111560.0,111550.0,0.15062207]
[1757472498347,0.05724007,111560.0,111550.0,0.10290236]
[1757472500847,0.05724007,111560.0,111550.0,0.00738]
[1757472501049,0.05724007,111560.0,111550.0,0.10290236]
[1757472502846,0.15276243,111560.0,111550.0,0.10290236]
[1757472503445,0.15276243,111560.0,111550.0,0.00738]
[1757472505947,0.15276243,111560.0,111550.0,0.10290236]
[1757472508148,0.15276243,111560.0,111550.0,0.00738]
[1757472509048,0.15276243,111560.0,111550.0,0.10290236]
[1757472511950,0.15276243,111560.0,111550.0,0.00738]
[1757472512246,0.15276243,111560.0,111540.0,0.10456819]
[1757472512552,0.03577,111550.0,111540.0,0.11194819]
[1757472512850,0.05687007,111550.0,111540.0,0.11194819]
[1757472513452,0.05687007,111550.0,111540.0,0.11294819]
[1757472514350,0.15239243,111550.0,111540.0,0.00848]
[1757472514746,0.15239243,111550.0,111540.0,0.01747369]
[1757472515349,0.05687007,111550.0,111540.0,0.11299605]
[1757472516751,0.05687007,111550.0,111540.0,0.11399605]
[1757472519148,0.05687007,111550.0,111540.0,0.11299605]
[1757472519349,0.05687007,111550.0,111540.0,0.11399605]
[1757472522451,0.05695347,111550.0,111540.0,0.11399605]
[1757472528568,0.02118347,111550.0,111540.0,0.45951841]
[1757472532861,0.02118347,111550.0,111540.0,0.64469007]
[1757472533056,0.0001,111560.0,111540.0,0.70892246]
[1757472533261,0.02127891,111560.0,111550.0,0.10751236]
[1757472533462,0.02117891,111560.0,111550.0,0.10751236]
[1757472533663,0.0136248,111570.0,111550.0,0.10751236]
[1757472533862,0.0563599,111570.0,111560.0,0.10290236]
[1757472534064,0.0562599,111570.0,111560.0,0.10290236]
[1757472535168,0.0572599,111570.0,111560.0,0.10290236]
[1757472536572,0.0582599,111570.0,111560.0,0.10290236]
[1757472537363,0.0572599,111570.0,111560.0,0.10290236]
[1757472538972,0.0562599,111570.0,111560.0,0.10290236]
[1757472542468,0.0352448,111570.0,111560.0,0.10290236]
[1757472542670,0.05623263,111570.0,111560.0,0.10290236]
[1757472543273,0.0352448,111570.0,111560.0,0.10290236]
[1757472543469,0.13076716,111570.0,111560.0,0.00738]
[1757472543677,0.03474,111560.0,111550.0,0.10290236]
[1757472544871,0.03474,111560.0,111550.0,0.10390236]
[1757472548380,0.03474,111560.0,111550.0,0.10490236]
[1757472558195,0.03474,111560.0,111550.0,0.00938]
[1757472558494,0.03474,111560.0,111550.0,0.10490236]
[1757472560292,0.03474,111560.0,111550.0,0.15264669]
[1757472562291,0.03474,111560.0,111550.0,0.21688208]
[1757472562694,0.03474,111560.0,111550.0,0.07361539]
[1757472562886,0.03474,111560.0,111550.0,0.21688208]
[1757472563390,0.17800669,111560.0,111550.0,0.21688208]
[1757472563589,0.03474,111560.0,111550.0,0.21688208]
[1757472564793,0.03474,111560.0,111550.0,0.07361539]
[1757472564995,0.03474,111560.0,111550.0,0.21688208]
[1757472567798,0.03474,111560.0,111550.0,0.15264669]
[1757472570898,0.03474,111560.0,111550.0,0.29591338]
[1757472570899,0.01302,111560.0,111550.0,0.29591338]
[1757472571099,0.0136248,111570.0,111550.0,0.29591338]
[1757472571299,0.17944149,111570.0,111560.0,0.29391338]
[1757472571597,0.2003342,111570.0,111560.0,0.29391338]
[1757472578694,0.05706751,111570.0,111560.0,0.29391338]
[1757472579402,0.2003342,111570.0,111560.0,0.29391338]
[1757472582804,0.05706751,111570.0,111560.0,0.29391338]
[1757472583104,0.2003342,111570.0,111560.0,0.29391338]
[1757472583509,0.05706751,111570.0,111560.0,0.29391338]
[1757472583703,0.2003342,111570.0,111560.0,0.29391338]
[1757472593216,0.05706751,111570.0,111560.0,0.29391338]
[1757472593509,0.2003342,111570.0,111560.0,0.29391338]
[1757472595616,0.2003342,111570.0,111560.0,0.15064669]
[1757472596007,0.20062963,111570.0,111560.0,0.15064669]
[1757472596513,0.20062963,111570.0,111560.0,0.29391338]
[1757472602516,0.20062963,111570.0,111560.0,0.00738]
[1757472602720,0.20062963,111570.0,111560.0,0.29391338]
[1757472604813,0.20062963,111570.0,111560.0,0.00738]
[1757472605020,0.05736294,111570.0,111560.0,0.29391338]
[1757472605620,0.03539,111550.0,111540.0,0.15974038]
[1757472605807,0.03539,111550.0,111540.0,0.36724246]
[1757472606817,0.03539,111550.0,111540.0,0.36924246]
[1757472607516,0.03539,111550.0,111540.0,0.37124246]
[1757472613422,0.03539,111550.0,111540.0,0.08470908]
[1757472613622,0.03539,111550.0,111540.0,0.37124246]
[1757472617927,0.03539,111550.0,111540.0,0.30700707]
[1757472622334,0.03539,111550.0,111540.0,0.27576854]
[1757472623035,0.03539,111550.0,111540.0,0.21153315]
[1757472624134,0.03539,111550.0,111540.0,0.27576854]
[1757472625329,0.03539,111550.0,111540.0,0.08470908]
[1757472625531,0.03539,111550.0,111540.0,0.27576854]
[1757472628048,0.03539,111550.0,111540.0,0.18023881]
[1757472636456,0.03539,111550.0,111540.0,0.11600342]
[1757472637048,0.03539,111550.0,111540.0,0.18023881]
[1757472638061,0.03539,111550.0,111540.0,0.11600342]
[1757472640561,0.13091973,111550.0,111540.0,0.11600342]
[1757472641057,0.03539,111550.0,111540.0,0.11600342]
[1757472642258,0.03539,111550.0,111540.0,0.02047369]
[1757472642655,0.03539,111550.0,111540.0,0.11600342]
[1757472645263,0.03539,111550.0,111540.0,0.11400342]
[1757472645466,0.03539,111550.0,111540.0,0.11500342]
[1757472645656,0.03539,111550.0,111540.0,0.01947369]
[1757472645858,0.03539,111550.0,111540.0,0.11500342]
[1757472647366,0.03539,111550.0,111540.0,0.11400342]
[1757472650665,0.13091973,111550.0,111540.0,0.11400342]
[1757472652569,0.03539,111550.0,111540.0,0.11400342]
[1757472653173,0.03539,111550.0,111540.0,0.01847369]
[1757472653373,0.03539,111550.0,111540.0,0.11400342]
[1757472653672,0.05672184,111550.0,111540.0,0.11400342]
[1757472653870,0.13091973,111550.0,111540.0,0.11400342]
[1757472654071,0.15225166,111550.0,111540.0,0.11400342]
[1757472655566,0.05672193,111550.0,111540.0,0.01847369]
[1757472655766,0.05672193,111550.0,111540.0,0.11400342]
[1757472658177,0.15225166,111550.0,111540.0,0.01847369]
[1757472658377,0.15225166,111550.0,111540.0,0.11400342]
[1757472660479,0.15225166,111550.0,111540.0,0.10500973]
[1757472660679,0.13091973,111550.0,111540.0,0.00948]
[1757472660880,0.15225187,111550.0,111540.0,0.0021]
[1757472661081,0.15225187,111550.0,111540.0,0.00948]
[1757472662682,0.15225187,111550.0,111540.0,0.00848]
[1757472662876,0.05672214,111550.0,111540.0,0.00848]
[1757472663084,0.15225187,111550.0,111540.0,0.00848]
[1757472663280,0.15225187,111550.0,111540.0,0.10300973]
[1757472663481,0.15325187,111550.0,111540.0,0.10300973]
[1757472664483,0.05772214,111550.0,111540.0,0.10300973]
[1757472664680,0.15325187,111550.0,111540.0,0.10300973]
[1757472664879,0.05772214,111550.0,111540.0,0.19853946]
[1757472665077,0.02233214,111550.0,111540.0,0.44853946]
[1757472665278,0.02233214,111550.0,111540.0,0.45314946]
[1757472666286,0.02233214,111550.0,111540.0,0.45414946]
[1757472666882,0.02133214,111550.0,111540.0,0.54479886]
[1757472667082,0.0001,111560.0,111540.0,0.60903425]
[1757472667273,0.02143976,111560.0,111550.0,0.10290973]
[1757472667480,0.0136248,111570.0,111550.0,0.10290973]
[1757472667679,0.0136248,111570.0,111540.0,0.25612452]
[1757472667680,0.05769364,111570.0,111560.0,0.10290973]
[1757472667880,0.05759364,111570.0,111560.0,0.10290973]
[1757472668086,0.15312337,111570.0,111560.0,0.10290973]
[1757472669180,0.15312337,111570.0,111560.0,0.00738]
[1757472669487,0.15412337,111570.0,111560.0,0.00738]
[1757472670987,0.15412337,111570.0,111560.0,0.10290973]
[1757472671684,0.15612337,111570.0,111560.0,0.10290973]
[1757472674386,0.15612337,111570.0,111560.0,0.00738]
[1757472674589,0.15612337,111570.0,111560.0,0.10290973]
[1757472680292,0.06059364,111570.0,111560.0,0.10290973]
[1757472681583,0.05959364,111570.0,111560.0,0.00738]
[1757472681782,0.05959364,111570.0,111560.0,0.10290973]
[1757472681990,0.15512337,111570.0,111560.0,0.10290973]
[1757472682388,0.20284919,111570.0,111560.0,0.2938911]
[1757472682589,0.20184919,111570.0,111560.0,0.2938911]
[1757472683484,0.05859364,111570.0,111560.0,0.2938911]
[1757472683689,0.05859364,111570.0,111560.0,0.15063555]
[1757472683690,0.20184919,111570.0,111560.0,0.15063555]
[1757472685086,0.20184919,111570.0,111560.0,0.2938911]
[1757472685387,0.20184919,111570.0,111560.0,0.00738]
[1757472685579,0.20184919,111570.0,111560.0,0.2938911]
[1757472686678,0.20184919,111570.0,111560.0,0.15063555]
[1757472687580,0.20184919,111570.0,111560.0,0.2938911]
[1757472687982,0.05859364,111570.0,111560.0,0.2938911]
[1757472688186,0.20184919,111570.0,111560.0,0.2938911]
[1757472690499,0.05859364,111570.0,111560.0,0.2938911]
[1757472690699,0.20184919,111570.0,111560.0,0.2938911]
[1757472691198,0.20184919,111570.0,111560.0,0.15063555]
[1757472691800,0.20184919,111570.0,111560.0,0.2938911]
[1757472692397,1.01820919,111570.0,111560.0,0.2938911]
[1757472693196,0.20184919,111570.0,111560.0,0.2938911]
[1757472694301,0.05859364,111570.0,111560.0,0.2938911]
[1757472694504,0.20184919,111570.0,111560.0,0.2938911]
[1757472695204,0.05859364,111570.0,111560.0,0.00738]
[1757472695399,0.20184919,111570.0,111560.0,0.15063555]
[1757472696405,0.05859364,111570.0,111560.0,0.2938911]
[1757472696705,0.20184919,111570.0,111560.0,0.2938911]
[1757472698005,0.20184919,111570.0,111560.0,0.00738]
[1757472698207,0.20184919,111570.0,111560.0,0.2938911]
[1757472698905,0.20184919,111570.0,111560.0,0.00738]
[1757472699113,0.20184919,111570.0,111560.0,0.2938911]
[1757472703509,1.01816919,111570.0,111560.0,0.2938911]
[1757472704011,1.01816919,111570.0,111560.0,0.15063555]
[1757472706811,0.03513364,111570.0,111560.0,0.56477134]
[1757472707014,0.02247364,111570.0,111560.0,0.70802689]
[1757472707213,0.0011348,111570.0,111560.0,0.77226228]
[1757472707918,0.0011348,111570.0,111560.0,0.70802689]
[1757472708419,0.0011348,111570.0,111560.0,0.31577134]
[1757472709320,0.0001348,111570.0,111560.0,0.31577134]
[1757472709517,0.0001348,111570.0,111560.0,0.31677134]
[1757472718327,0.0223548,111570.0,111560.0,0.31677134]
[1757472718527,0.0350148,111570.0,111560.0,0.31677134]
[1757472722929,0.0127948,111570.0,111560.0,0.31677134]
[1757472723434,0.0350148,111570.0,111560.0,0.31677134]
[1757472724634,0.0001348,111570.0,111560.0,0.31677134]
[1757472726933,0.0001348,111570.0,111560.0,0.54966039]
[1757472727135,0.0001348,111570.0,111560.0,0.40640484]
[1757472728230,0.0001348,111570.0,111560.0,0.54966039]
[1757472729035,0.0001348,111570.0,111560.0,0.40640484]
[1757472730230,0.0001348,111570.0,111560.0,0.26314929]
[1757472730530,0.0001348,111570.0,111560.0,0.40640484]
[1757472731134,0.0354148,111570.0,111560.0,0.47064023]
[1757472732836,0.0131948,111570.0,111560.0,0.47064023]
[1757472733032,0.0351448,111570.0,111560.0,0.09449563]
[1757472733237,0.0351448,111570.0,111560.0,0.38100673]
[1757472734937,0.0131948,111570.0,111560.0,0.38100673]
[1757472735240,0.0351448,111570.0,111560.0,0.38100673]
[1757472735435,0.42840035,111570.0,111560.0,0.03026024]
[1757472735732,0.59310397,111570.0,111560.0,0.002]
[1757472735937,0.44984842,111570.0,111560.0,0.002]
[1757472737132,0.44984842,111570.0,111560.0,0.001]
[1757472737737,0.03501,111560.0,111550.0,0.15063555]
[1757472737939,0.17826555,111560.0,111550.0,0.15063555]
[1757472740037,0.17826555,111560.0,111550.0,0.00738]
[1757472740234,0.17926555,111560.0,111550.0,0.15063555]
[1757472740844,0.03601,111560.0,111550.0,0.15063555]
[1757472741038,0.17926555,111560.0,111550.0,0.15063555]
[1757472741641,0.03601,111560.0,111550.0,0.15063555]
[1757472742341,0.03601,111560.0,111550.0,0.1028903]
[1757472749342,0.01406,111560.0,111550.0,0.1028903]
[1757472749544,0.001,111560.0,111550.0,0.1028903]
[1757472750640,0.03601,111560.0,111550.0,0.00738]
[1757472750845,0.01406,111560.0,111550.0,0.1038903]
[1757472751244,0.03601,111560.0,111550.0,0.1038903]
[1757472751941,0.03501,111560.0,111550.0,0.1048903]
[1757472758252,0.03501,111560.0,111550.0,0.00938]
[1757472758452,0.03501,111560.0,111550.0,0.1048903]
[1757472759257,0.03501,111560.0,111550.0,0.1038903]
[1757472759667,0.03501,111560.0,111550.0,0.00738]
[1757472759963,0.03601,111560.0,111550.0,0.1028903]
[1757472761964,0.03582,111550.0,111540.0,0.12362087]
[1757472762365,0.1313303,111550.0,111540.0,0.02811057]
[1757472762568,0.03582,111550.0,111540.0,0.12362087]
[1757472763655,0.03582,111550.0,111540.0,0.12562087]
[1757472765166,0.05734481,111550.0,111540.0,0.03011057]
[1757472765363,0.05734481,111550.0,111540.0,0.12562087]
[1757472766369,0.03582,111550.0,111540.0,0.12562087]
[1757472767470,0.03582,111550.0,111540.0,0.22113117]
[1757472768170,0.03582,111550.0,111540.0,0.18985626]
[1757472768367,0.1313303,111550.0,111540.0,0.12562087]
[1757472768767,0.3813303,111550.0,111540.0,0.03011057]
[1757472768968,0.40285345,111550.0,111540.0,0.03011057]
[1757472770873,0.40285345,111550.0,111540.0,0.02911057]
[1757472771076,0.40385345,111550.0,111540.0,0.02811057]
[1757472772368,0.40385345,111550.0,111540.0,0.0001]
[1757472773075,0.40385345,111550.0,111540.0,0.00748]
[1757472777981,0.3823303,111550.0,111540.0,0.00748]
[1757472779479,0.40382267,111550.0,111540.0,0.00748]
[1757472782081,0.30831237,111550.0,111540.0,0.00748]
[1757472782380,0.40382267,111550.0,111540.0,0.00748]
[1757472784479,0.3823303,111550.0,111540.0,0.0001]
[1757472785579,0.3823303,111550.0,111540.0,0.00748]
[1757472788384,0.3823303,111550.0,111540.0,0.0001]
[1757472788884,0.1323303,111550.0,111540.0,0.0001]
[1757472789284,0.15384077,111550.0,111540.0,0.0001]
[1757472795486,0.97820077,111550.0,111540.0,0.0001]
[1757472798188,1.22784077,111550.0,111540.0,0.0001]
[1757472798887,1.22784077,111550.0,111510.0,0.06423539]
[1757472799084,0.03546,111520.0,111510.0,0.00738]
[1757472799391,0.03546,111520.0,111510.0,0.16712569]
[1757472799984,0.03546,111520.0,111510.0,0.16912569]
[1757472800180,0.03546,111520.0,111510.0,0.16921569]
[1757472800380,0.03546,111520.0,111510.0,0.11391379]
[1757472800593,0.03546,111520.0,111510.0,0.18638075]
[1757472800790,0.03546,111520.0,111510.0,0.18438075]
[1757472800990,0.03546,111520.0,111510.0,0.18638075]
[1757472801895,0.03546,111520.0,111510.0,0.18938075]
[1757472802395,0.03546,111520.0,111510.0,0.23424163]
[1757472803895,0.17883118,111520.0,111510.0,0.09087045]
[1757472804192,0.17883118,111520.0,111510.0,0.23424163]
[1757472805888,0.03546,111520.0,111510.0,0.09087045]
[1757472806089,0.17883118,111520.0,111510.0,0.23424163]
[1757472806590,0.03546,111520.0,111510.0,0.23424163]